Cogmind - Beta 13 @@@ ROGUE MODE // 2024.03.19 @ 17:11:16 Player: youngster Result: Destroyed by B-75 Beast with Magnetic Acceleration Cannon Performance ------------- Evolutions (2) 1000 Regions Visited (10) 2000 Robots Destroyed (187) 935 Value Destroyed (5352) 5352 Prototype IDs (52) 1040 Alien Tech Used (0) 0 Bonus (638) 638 TOTAL SCORE: 10965 Bonus ------- High Alert Combat Kills 376 Follower Combat Kills 98 Entered Garrisons 400 Aligned with FarCom 300 Friendly Fire -536 Cogmind --------- Core Integrity 0/550 Matter 31/300 Energy 310/310 System Corruption 2% Temperature Cool (0) Movement Treading (233) Ox1 Location -8/Garrison Parts ------- > --- POWER (1) -------- Reinforced Fission Core > --- PROPULSION (3) --- Armored Treads Advanced Treads Advanced Treads > --- UTILITY (4) ------ Experimental Heat Sink Huge Storage Unit Improved Targeting Computer Medium Reflective Plating > --- WEAPON (3) ------- Enhanced Autogun Enhanced Autogun 8R-AWN's Boregun > --- INVENTORY (25) --- Armored Treads Armored Treads Advanced Treads Advanced Myomer Leg Armored Wheel Advanced Visual Processing Unit Improved Sensor Array Seismic Detector Experimental Targeting Computer Advanced Weapon Cycler Hardened Heavy Armor Plating Improved Light Armor Plating Layered Medium Armor Plating Graphene Brace Hardlight Generator Long-range Tractor Beam AS-neutralizer No. 17b Improved EM Pulse Cannon Enhanced Autogun Grenade Launcher Rocket Launcher Heavy Mace Longsword +1 Peak State ------------ > --- POWER ------------ Reinforced Fission Core > --- PROPULSION ------- Advanced Treads Advanced Treads Improved Medium Treads > --- UTILITY ---------- Huge Storage Unit Improved Targeting Computer Improved Light Armor Plating Layered Medium Armor Plating > --- WEAPON ----------- Minigun 8R-AWN's Boregun 8R-AWN's Boregun > --- INVENTORY -------- Armored Treads Advanced Treads Advanced Treads Advanced Treads Advanced Myomer Leg Armored Wheel Experimental Heat Sink Improved Cooling System High-capacity Matter Pod Improved Sensor Array Seismic Detector Experimental Targeting Computer Advanced Weapon Cycler Light Armor Plating Medium Reflective Plating Hardlight Generator Long-range Tractor Beam AS-neutralizer No. 17b Improved EM Pulse Cannon Magnetic Acceleration Cannon Grenade Launcher Rocket Launcher Heavy Mace Longsword +1 [Rating: 60] Favorites ----------- Power Heavy Ion Engine Engine Heavy Ion Engine Power Core Reinforced Fission Core Propulsion Light Treads Treads Light Treads Wheel Compact Wheel Utility Huge Storage Unit Device Seismic Detector Storage Huge Storage Unit Processor Improved Targeting Computer Hackware Hacking Suite Protection Hardened Light Armor Plating Weapon Improved Assault Rifle Energy Gun Medium Laser Energy Cannon Improved EM Pulse Cannon Ballistic Gun Improved Assault Rifle Ballistic Cannon Light Cannon Launcher Grenade Launcher Impact Weapon Heavy Mace Special Melee Weapon Improved Datajack Build | -11 -10 -10 -9 -9 -9 -8 -8 -8 -8 -8 ------- Run | Yrd Mat Min Mat Min Exi Min Mat Gar Mat Gar Slots Evolved 4 | . . . 2 . . . 2 . . . Power . | . . . . . . . . . . . Propulsion 1 | . . . . . . . 1 . . . Utility 2 | . . . 2 . . . . . . . Weapon 1 | . . . . . . . 1 . . . Parts Attached 244 | 6 25 3 64 13 18 7 11 19 54 24 Power 9 | 1 2 . 1 2 1 . . 1 1 . Engine 8 | 1 2 . 1 2 1 . . 1 . . Core 1 | . . . . . . . . . 1 . Reactor . | . . . . . . . . . . . Propulsion 50 | 2 8 . 23 . 4 . 3 3 6 1 Treads 36 | 2 5 . 13 . 3 . 3 3 6 1 Leg . | . . . . . . . . . . . Wheel 14 | . 3 . 10 . 1 . . . . . Hover . | . . . . . . . . . . . Flight . | . . . . . . . . . . . Utility 72 | 1 4 1 17 3 4 3 2 1 27 9 Device 34 | . 3 1 7 1 . 2 . 1 12 7 Storage 5 | 1 1 . 1 . 1 . . . 1 . Processor 2 | . . . 2 . . . . . . . Hackware 1 | . . . . . . . . . 1 . Protection 30 | . . . 7 2 3 1 2 . 13 2 Artifact . | . . . . . . . . . . . Weapon 113 | 2 11 2 23 8 9 4 6 14 20 14 Energy Gun 4 | 1 2 . 1 . . . . . . . Energy Cannon 3 | . . . . . . . 1 2 . . Ballistic Gun 60 | 1 5 1 12 3 7 2 5 8 11 5 Ballistic Cannon 7 | . 2 . 4 . . . . . 1 . Launcher 27 | . 2 1 5 2 2 2 . 4 4 5 Special Weapon . | . . . . . . . . . . . Impact Weapon 11 | . . . 1 2 . . . . 4 4 Slashing Weapon . | . . . . . . . . . . . Piercing Weapon . | . . . . . . . . . . . Special Melee Weapon 1 | . . . . 1 . . . . . . Unidentified Prototypes 3 | . 1 . 1 . . . . . 1 . Parts Lost 23 | . 5 . 1 . 5 . 2 1 9 . Power 3 | . 1 . . . 1 . . . 1 . Propulsion 5 | . . . . . 1 . 1 . 3 . Utility 7 | . 2 . 1 . 1 . 1 . 2 . Weapon 8 | . 2 . . . 2 . . 1 3 . Highest Loss Streak 6 | . 2 . 1 . 3 . 2 1 6 . To Critical Strikes 4 | . . . . . 4 . . . . . Average Slot Usage (%) 99 | . 99 100 98 99 99 100 96 97 99 99 Engine 9 | . 13 14 11 10 10 11 9 9 6 . Core 1 | . . . . . . . . . 2 9 Treads 17 | . 17 14 11 11 11 11 16 23 27 26 Wheel 7 | . 10 14 10 11 10 11 9 1 . . Device 7 | . 13 14 6 4 . 8 1 9 8 6 Storage 10 | . 14 14 11 11 11 11 9 9 9 9 Processor 10 | . . . 9 22 21 11 9 9 9 9 Protection 8 | . . . 16 6 11 13 15 9 8 11 Ballistic Gun 19 | . 20 15 18 15 19 18 26 25 20 20 Ballistic Cannon 1 | . 2 . 2 . . . . . 1 . Launcher 1 | . . 12 . 3 . 3 . . . 1 Impact Weapon 1 | . . . . 2 . . . . 4 4 Naked Turns . | . . . . . . . . . . . Heaviest Build 128 | 11 90 90 107 103 107 106 107 117 127 128 Greatest Support 74 | 40 40 16 40 12 40 12 20 70 74 64 Greatest Overweight (x) 8 | . 5 5 8 8 8 8 8 8 1 1 Average Overweight (x) 4 | . 3 5 6 7 7 8 7 3 1 1 Largest Inventory Capacity 25 | 8 25 25 25 25 25 25 25 25 25 25 Average Capacity 24 | 7 21 25 25 25 25 25 25 25 25 25 Most Carried 25 | 6 25 25 25 25 25 25 25 25 25 25 Average Carried 22 | 4 17 24 24 24 23 25 24 23 24 24 Final Capacity 25 | 8 25 25 25 25 25 25 25 25 25 25 Final Carried 25 | 6 25 25 25 25 25 25 23 25 25 24 Class Distribution -------------------- 70% | Mutant 14% | Scavenger-Gunner 9% | Scavenger-Mutant Dominant Class ---------------- Mutant | -10/Materials Mutant | -10/Mines Mutant | -9/Materials Mutant | -9/Mines Mutant | -9/Exiles Mutant | -8/Mines Tank | -8/Materials Scavenger-Gunner | -8/Garrison Scavenger-Gunner | -8/Materials Mutant | -8/Garrison Resources | -11 -10 -10 -9 -9 -9 -8 -8 -8 -8 -8 ----------- Run | Yrd Mat Min Mat Min Exi Min Mat Gar Mat Gar Matter Collected 7214 | 296 768 120 1223 319 681 . 404 526 2006 871 Remotely 652 | . . . . . . . . . 478 174 Salvage Created 6629 | 143 872 91 1403 273 139 . 104 563 2052 989 Parts 427 | 13 62 14 105 16 11 . 5 31 122 48 Haulers Intercepted 12 | . 2 . 6 . . . . . 4 . Recyclers Shooed 6 | . 3 . 1 . . . . . 2 . Parts Field Recycled . | . . . . . . . . . . . Retrieved Matter . | . . . . . . . . . . . Parts Self-Destructed . | . . . . . . . . . . . Prevented . | . . . . . . . . . . . Kills | -11 -10 -10 -9 -9 -9 -8 -8 -8 -8 -8 ------- Run | Yrd Mat Min Mat Min Exi Min Mat Gar Mat Gar Combat Hostiles Destroyed 139 | . 16 6 29 9 4 2 2 13 39 19 Melee 1 | . . . . 1 . . . . . . Guns 80 | . 12 . 21 1 2 . 1 5 26 12 Cannons 13 | . 4 . 3 . . . 1 2 3 . AOE 44 | . . 6 5 7 2 2 . 5 10 7 Classes Destroyed 18 | 2 7 . 3 1 . . 1 2 1 1 Worker 11 | 1 1 . 2 3 . . . . 4 . Builder 3 | . 1 . 1 1 . . . . . . Tunneler 9 | 7 . . . 1 . . . . 1 . Hauler 12 | . 2 . 6 . . . . . 4 . Recycler 9 | . 3 . . 1 . . . . 5 . Mechanic 2 | . 1 . . . . . . . 1 . Operator 1 | . . . 1 . . . . . . . Watcher 10 | . 3 . 4 . . . . . 3 . Swarmer 40 | . 6 3 7 . . . . . 20 4 Grunt 56 | . 10 3 11 3 . 2 . 10 12 5 Brawler 1 | . . . . . . . . . . 1 Duelist 2 | . . . 1 . . . . . . 1 Sentry 23 | . . . 10 . . . . . 6 7 Hunter 3 | . . . . . . . 2 1 . . Programmer 2 | . . . . . . . . 1 . 1 Heavy 1 | . . . . . . . . . 1 . Behemoth 1 | . . . . . . . . 1 . . Assembled 12 | . . . . 6 6 . . . . . Best Kill Streak 7 | 2 4 3 4 4 3 2 2 7 6 4 Combat Bots Only 7 | . 4 3 4 4 3 2 2 7 5 4 Max Kills in Single Turn 3 | 1 1 3 2 2 3 1 1 3 2 3 Gunslinging 1 | . . . 1 . . . . . 1 . Exploded 3 | . . 3 1 2 2 1 . 3 2 3 Melee 1 | . . . . 1 . . . . . . Uniques/NPCs Destroyed 1 | . . . . . 1 . . . . . 8R-AWN (-9/Exiles) Combat | -11 -10 -10 -9 -9 -9 -8 -8 -8 -8 -8 -------- Run | Yrd Mat Min Mat Min Exi Min Mat Gar Mat Gar Hostile Shots Fired 737 | . 91 10 121 18 91 11 59 90 136 110 Missed 193 | . 21 8 29 5 21 6 15 25 40 23 Damage Taken 7272 | . 727 44 1224 326 1237 91 678 613 1515 817 Core 1020 | . 122 . 228 11 87 . 68 26 278 200 Absorbed by Shields 4 | . . . . . . . . . 4 . Ignored by Resistances 143 | . . . . . . . . . 77 66 Regen/Repaired (Parts) 380 | . . . 23 . . . . . 357 . Core Remaining (%) 56 | 100 . 51 . . . 18 . . . . Volleys Fired 506 | 36 81 5 95 21 46 6 11 43 93 69 Largest 3 | 2 2 1 2 2 2 2 3 3 3 3 Hottest 88 | 70 85 30 88 46 66 66 69 88 85 80 Shots Fired 1080 | 72 159 5 180 31 92 12 27 94 233 175 Gun 939 | 72 126 . 151 20 86 4 24 77 213 166 Cannon 81 | . 32 . 22 . . . 3 11 13 . Launcher 60 | . 1 5 7 11 6 8 . 6 7 9 Special . | . . . . . . . . . . . Kinetic 893 | 36 97 . 157 20 86 4 24 77 226 166 Thermal 81 | 36 45 . . . . . . . . . Explosive 60 | . 1 5 7 11 6 8 . 6 7 9 Electromagnetic 46 | . 16 . 16 . . . 3 11 . . Robot Hit Streak 29 | 13 12 . 13 9 28 29 13 8 20 12 Robot Miss Streak 7 | 5 3 . 4 3 4 2 2 4 7 5 Penetration Max 1 | . . . . . . . . . 1 1 Secondary Targets 5 | . 1 . 1 . . . . . 2 1 Max Gunslinging Chain 1 | . 1 . 1 . . . . . 1 1 Shots Hit Robots 729 | 43 109 . 122 16 81 6 23 63 156 110 Core Hits 353 | 14 45 9 66 25 30 7 6 37 73 41 Critical Kills 20 | . . . 2 . . . . 1 12 5 Critical Parts Destroyed 44 | . . . 1 . . 2 . 8 25 8 Critical Strikes 85 | 4 6 . 4 . . 2 . 12 37 20 Burn 9 | 4 5 . . . . . . . . . Destroy 70 | . . . 3 . . 2 . 11 34 20 Blast 1 | . 1 . . . . . . . . . Corrupt 2 | . . . 1 . . . . 1 . . Smash 3 | . . . . . . . . . 3 . Melee Attacks 36 | . . . 1 6 4 . . . 20 5 Impact 32 | . . . 1 6 . . . . 20 5 Slashing . | . . . . . . . . . . . Piercing . | . . . . . . . . . . . Sneak Attacks 14 | . . . . . 4 . . . 10 . Combat Hostiles . | . . . . . . . . . . . Follow-up Attacks . | . . . . . . . . . . . Damage Inflicted 17000 | 474 1357 384 2507 884 1691 711 323 1745 4382 2542 Guns 10225 | 474 993 . 1601 200 1256 52 231 910 2541 1967 Cannons 1323 | . 351 . 315 . . . 92 246 319 . Explosions 4379 | . . 384 586 629 435 659 . 589 522 575 Melee 1012 | . . . . 55 . . . . 957 . Ramming 61 | . 13 . 5 . . . . . 43 . Kinetic 10206 | 152 785 . 1793 200 1256 52 231 910 2860 1967 Thermal 849 | 322 374 . 153 . . . . . . . Explosive 4200 | . . 384 433 629 435 659 . 589 496 575 Electromagnetic 672 | . 185 . 123 . . . 92 246 26 . Impact 1012 | . . . . 55 . . . . 957 . Slashing . | . . . . . . . . . . . Piercing . | . . . . . . . . . . . Highest Corruption 2 | . . . . . . . . . . 2 Average Corruption 1 | . . . . . . . . . . 1 Corruption Purged . | . . . . . . . . . . . Corruption Blocked . | . . . . . . . . . . . Effects 2 | . . . . . . . . . . 2 Message Errors 1 | . . . . . . . . . . 1 Matter Fused 1 | . . . . . . . . . . 1 Overload Shots . | . . . . . . . . . . . Overflow Damage 713 | . . 30 11 22 19 34 . 5 592 . Projectiles 21 | . . . 11 . . . . . 10 . Explosions 110 | . . 30 . 22 19 34 . 5 . . Melee 582 | . . . . . . . . . 582 . Knockbacks 13 | . 5 . 2 . . . . . 6 . Impact 4 | . 1 . . . . . . . 3 . Kinetic 8 | . 3 . 2 . . . . . 3 . Secondary 1 | . 1 . . . . . . . . . Self-Inflicted Damage 280 | . 13 23 95 94 28 . . . . 27 Shots 10 | . 1 1 2 4 1 . . . . 1 Rammed 10 | . 4 . 2 . . . . . 4 . Targets Rammed 12 | . 4 . 2 . . . . . 6 . Kicked . | . . . . . . . . . . . Crushed 2 | . . . . . . . . . 2 . Highest Temperature 338 | 102 246 . 215 17 56 177 162 237 283 338 Average Temperature 66 | 39 57 . 36 7 16 106 75 100 69 116 Received Heat Transfer 1891 | . 291 12 375 59 20 45 216 243 387 243 Siege Activations . | . . . . . . . . . . . Robots Corrupted 1 | . . . . . . . . 1 . . Combat Hostiles 1 | . . . . . . . . 1 . . Parts Fried 11 | . 2 . . . . . 1 2 6 . Impact Corruptions 13 | . . . . . . . . . 13 . Robots Melted . | . . . . . . . . . . . Combat Hostiles . | . . . . . . . . . . . Parts Melted 2 | 2 . . . . . . . . . . Heat Transferred 2938 | 1258 1480 . 200 . . . . . . . Parts Sabotaged . | . . . . . . . . . . . Parts Stolen . | . . . . . . . . . . . Parts Stripped . | . . . . . . . . . . . Power Chain Reactions 1 | . . . 1 . . . . . . . Alert | -11 -10 -10 -9 -9 -9 -8 -8 -8 -8 -8 ------- Run | Yrd Mat Min Mat Min Exi Min Mat Gar Mat Gar Peak Influence 907 | 40 405 356 450 248 . 94 111 459 653 907 Initial 352 | . . 25 37 161 . . 36 59 223 352 Average 251 | 16 174 187 267 75 . 44 79 223 332 643 Maximum Alert Level 3 | . 2 1 2 1 . . . 2 2 3 Low Security (%) 47 | 100 64 62 27 75 . 100 100 55 36 . Level 1 30 | . 34 37 57 24 . . . 34 20 9 Level 2 17 | . 1 . 15 . . . . 9 42 38 Level 3 3 | . . . . . . . . . . 52 Level 4 . | . . . . . . . . . . . Level 5 . | . . . . . . . . . . . High Security . | . . . . . . . . . . . Max Security . | . . . . . . . . . . . Squads Dispatched 20 | . 4 . 4 1 . . 1 . 10 . Investigation 9 | . 3 . 1 1 . . . . 4 . Extermination . | . . . . . . . . . . . Reinforcement 8 | . 1 . 3 . . . 1 . 3 . Assault . | . . . . . . . . . . . Garrison 3 | . . . . . . . . . 3 . Intercept . | . . . . . . . . . . . Searches Triggered . | . . . . . . . . . . . Construction Impeded 2 | . . . 1 . . . . . 1 . Haulers Reinforced . | . . . . . . . . . . . Active Scanning Responses . | . . . . . . . . . . . Cargo Convoy Interrupts . | . . . . . . . . . . . Stealth | -11 -10 -10 -9 -9 -9 -8 -8 -8 -8 -8 --------- Run | Yrd Mat Min Mat Min Exi Min Mat Gar Mat Gar Distress Signals 10 | . 3 . 3 1 . . . . 3 . Communications Jammed . | . . . . . . . . . . . Distress Signals . | . . . . . . . . . . . Times Spotted 209 | . 28 7 53 11 5 5 8 13 59 20 Peak Tracking Total 7 | . 7 3 4 3 6 4 5 6 4 3 Tactical Retreats 9 | . 2 . . . . 1 . 1 5 . Traps | -11 -10 -10 -9 -9 -9 -8 -8 -8 -8 -8 ------- Run | Yrd Mat Min Mat Min Exi Min Mat Gar Mat Gar Traps Triggered 8 | . . . . . . . 3 . . 5 Indirectly . | . . . . . . . . . . . Trap Hack Attempts . | . . . . . . . . . . . Triggered . | . . . . . . . . . . . Disarmed . | . . . . . . . . . . . Reprogrammed . | . . . . . . . . . . . Reused . | . . . . . . . . . . . Traps Extracted . | . . . . . . . . . . . Installed . | . . . . . . . . . . . Triggered . | . . . . . . . . . . . Machines | -11 -10 -10 -9 -9 -9 -8 -8 -8 -8 -8 ---------- Run | Yrd Mat Min Mat Min Exi Min Mat Gar Mat Gar Machines Disabled 28 | . 1 2 5 . 3 . . 1 14 2 Max in Single Turn 2 | . 1 1 2 . 2 . . 1 2 1 Garrison Relay 2 | . . . . . . . . 1 . 1 Machines Repaired . | . . . . . . . . . . . Machines Dismantled . | . . . . . . . . . . . Machines Sabotaged . | . . . . . . . . . . . Overloaded Fab Kills . | . . . . . . . . . . . Hacking | -11 -10 -10 -9 -9 -9 -8 -8 -8 -8 -8 --------- Run | Yrd Mat Min Mat Min Exi Min Mat Gar Mat Gar Machines Accessed 39 | . 10 . 12 2 2 . 1 . 11 1 Terminals 25 | . 7 . 9 1 . . . . 7 1 Fabricators . | . . . . . . . . . . . Repair Stations 4 | . 1 . 2 . . . . . 1 . Recycling Units 2 | . 2 . . . . . . . . . Scanalyzers 3 | . . . 1 . . . . . 2 . Garrison Access 2 | . . . . . . . 1 . 1 . Total Hacks 118 | . 23 . 39 5 2 . 1 . 46 2 Successful 61 | . 9 . 17 3 2 . 1 . 28 1 Failed 57 | . 14 . 22 2 . . . . 18 1 Catastrophic 5 | . 1 . . . . . . . 4 . Database Lockouts . | . . . . . . . . . . . Manual 60 | . 14 . 19 4 1 . . . 22 . Terminals 81 | . 19 . 31 4 . . . . 25 2 Fabricators . | . . . . . . . . . . . Repair Stations 14 | . 2 . 6 . . . . . 6 . Recycling Units 2 | . 2 . . . . . . . . . Scanalyzers 14 | . . . 2 . . . . . 12 . Garrison Access 4 | . . . . . . . 1 . 3 . Terminal Hacks 26 | . 5 . 8 3 2 . . . 7 1 Record 1 | . . . . . 1 . . . . . Part Schematic 2 | . . . . . . . . . 2 . Robot Schematic 1 | . 1 . . . . . . . . . Robot Analysis 3 | . 1 . 2 . . . . . . . Prototype ID Bank 8 | . 2 . 2 2 . . . . 2 . Open Door 1 | . . . . 1 . . . . . . Emergency Access Points 1 | . . . . . . . . . . 1 Unreport Threat 4 | . . . 1 . . . . . 3 . Locate Traps 2 | . 1 . 1 . . . . . . . Hauler Manifests 1 | . . . 1 . . . . . . . Zone Layout 1 | . . . 1 . . . . . . . Derelict Proto ID Bank 1 | . . . . . 1 . . . . . Fabricator Hacks . | . . . . . . . . . . . Repair Station Hacks 10 | . 1 . 3 . . . . . 6 . Scan Component 6 | . 1 . 2 . . . . . 3 . Repair 4 | . . . 1 . . . . . 3 . Recycling Unit Hacks . | . . . . . . . . . . . Scanalyzer 11 | . . . 2 . . . . . 9 . Insert Component 4 | . . . 1 . . . . . 3 . Analyze 7 | . . . 1 . . . . . 6 . Garrison Access Hacks 2 | . . . . . . . 1 . 1 . Unlock Access 2 | . . . . . . . 1 . 1 . Unauthorized Hacks 12 | . 3 . 4 . . . . . 5 . Terminals 10 | . 1 . 4 . . . . . 5 . Assimilate 1 | . . . 1 . . . . . . . Botnet 7 | . 1 . 2 . . . . . 4 . Operators 2 | . . . 1 . . . . . 1 . Fabricators . | . . . . . . . . . . . Repair Stations . | . . . . . . . . . . . Recycling Units 2 | . 2 . . . . . . . . . Tunnel 2 | . 2 . . . . . . . . . Scanalyzers . | . . . . . . . . . . . Garrison Access . | . . . . . . . . . . . Data Cores Recovered . | . . . . . . . . . . . Used . | . . . . . . . . . . . Hacking Detections 33 | . 8 . 11 1 . . 1 . 11 1 Full Trace Events 5 | . 1 . . . . . . . 4 . Feedback Events . | . . . . . . . . . . . Feedback Blocked . | . . . . . . . . . . . Robot Schematics Acquired 1 | . 1 . . . . . . . . . Robots Built . | . . . . . . . . . . . Authchips . | . . . . . . . . . . . Time . | . . . . . . . . . . . Total Robot Build Rating . | . . . . . . . . . . . Part Schematics Acquired 4 | . . . 1 . . . . . 3 . Parts Built . | . . . . . . . . . . . Authchips . | . . . . . . . . . . . Time . | . . . . . . . . . . . Total Part Build Rating . | . . . . . . . . . . . Parts Repaired 4 | . . . 1 . . . . . 3 . Time 220 | . . . 26 . . . . . 194 . Parts Recycled . | . . . . . . . . . . . Recycled Matter . | . . . . . . . . . . . Retrieved Matter . | . . . . . . . . . . . Retrieved Components . | . . . . . . . . . . . Parts Scanalyzed 3 | . . . 1 . . . . . 2 . Part Schematics Acquired 3 | . . . 1 . . . . . 2 . Parts Damaged 1 | . . . . . . . . . 1 . Bothacking | -11 -10 -10 -9 -9 -9 -8 -8 -8 -8 -8 ------------ Run | Yrd Mat Min Mat Min Exi Min Mat Gar Mat Gar Used RIF Installer . | . . . . . . . . . . . Robots Hacked 4 | . . . . . 4 . . . . . Non-combat 3 | . . . . . 3 . . . . . Combat 1 | . . . . . 1 . . . . . Robot Hacks Applied 4 | . . . . . 4 . . . . . parse_system 4 | . . . . . 4 . . . . . Relay Couplers Released 16 | . . . . . . . . 7 . 9 Machine Destruction 9 | . . . . . . . . 4 . 5 Programmers 7 | . . . . . . . . 3 . 4 Fabnet Peak Effective % . | . . . . . . . . . . . Robots Rewired . | . . . . . . . . . . . Allies Hacked . | . . . . . . . . . . . Hacks Repelled . | . . . . . . . . . . . Allies | -11 -10 -10 -9 -9 -9 -8 -8 -8 -8 -8 -------- Run | Yrd Mat Min Mat Min Exi Min Mat Gar Mat Gar Total Allies 4 | . . 3 . 1 . . . . . . Largest Group 3 | . . 3 3 1 . . . . . . Highest-Rated Group 40 | . . 40 40 31 . . . . . . Highest-Rated Ally 31 | . . 16 16 31 . . . . . . Total Orders . | . . . . . . . . . . . Ally Attacks 45 | . . 27 14 4 . . . . . . Total Damage 417 | . . 227 105 85 . . . . . . Kills 10 | . . 7 3 . . . . . . . Allies Corrupted . | . . . . . . . . . . . Allies Melted . | . . . . . . . . . . . Intel | -11 -10 -10 -9 -9 -9 -8 -8 -8 -8 -8 ------- Run | Yrd Mat Min Mat Min Exi Min Mat Gar Mat Gar Robot Analysis Total 3 | . 1 . 2 . . . . . . . Derelict Logs Recovered 2 | . . 1 . 1 . . . . . . Drone Launches . | . . . . . . . . . . . Drone Recoveries . | . . . . . . . . . . . Exploration | -11 -10 -10 -9 -9 -9 -8 -8 -8 -8 -8 ------------- Run | Yrd Mat Min Mat Min Exi Min Mat Gar Mat Gar Turns Passed 15922 | 412 2348 928 2851 1644 2133 126 178 690 3723 889 Spaces Moved 6175 | 187 914 511 1117 583 917 47 55 201 1361 282 Core 2 | 2 . . . . . . . . . . Treads 2174 | 185 191 . 11 . 1 . 1 142 1361 282 Legs . | . . . . . . . . . . . Wheels 3999 | . 723 511 1106 583 916 47 54 59 . . Hover . | . . . . . . . . . . . Flight . | . . . . . . . . . . . Fastest Speed 50 | 50 160 175 175 195 210 210 210 210 230 233 Average Speed 203 | 158 174 175 191 205 210 210 216 235 231 233 Slowest Speed 570 | 160 480 175 320 210 330 210 570 246 246 233 Overloaded Moves . | . . . . . . . . . . . Propulsion Burnouts . | . . . . . . . . . . . Robots Hopped . | . . . . . . . . . . . Cave-ins Triggered . | . . . . . . . . . . . Exploration Rate (%) 59 | 9 98 99 95 96 68 17 11 30 80 47 Regions Visited 10 Branch Regions 4 Pre-discovered Areas 3 | . 2 . . . 1 . . . . . Known Exits Taken 2 | . . . . . . . 1 . 1 . Unknown Exits Taken 7 | 1 1 1 1 1 1 1 . . . . Scrap Searched 3 | . . 2 . 1 . . . . . . Spaces Dug 99 | . 6 8 14 36 . . . . 12 23 Terrain Destroyed 436 | . 6 29 53 77 39 70 . 18 107 37 Melee 13 | . . . . 3 . . . . 7 3 Projectile 47 | . . . 5 . . 2 . 2 34 4 AOE 365 | . 6 29 48 74 39 68 . 13 60 28 Terrain Rammed . | . . . . . . . . . . . Walls Destroyed . | . . . . . . . . . . . Machines Disabled . | . . . . . . . . . . . Actions | -11 -10 -10 -9 -9 -9 -8 -8 -8 -8 -8 --------- Run | Yrd Mat Min Mat Min Exi Min Mat Gar Mat Gar Total 8571 | 234 1514 541 1656 989 1041 59 89 337 1706 405 Wait 1369 | . 459 18 310 358 . . 6 65 137 16 Move 6167 | 186 913 510 1116 582 916 46 55 200 1361 282 Hop . | . . . . . . . . . . . Pick Up 120 | 6 22 2 29 3 29 . 4 6 19 . Fast Attach 24 | 6 3 1 4 1 . . 4 1 3 1 Attach 34 | . 8 . 3 . 7 . 2 4 10 . Detach 7 | . 4 . . . 1 . . 1 1 . Swap 186 | . 14 2 57 12 11 7 5 14 41 23 Drop 100 | . 6 3 39 5 26 . 2 3 15 1 Fire 506 | 36 81 5 95 21 46 6 11 43 93 69 Melee 36 | . . . 1 6 4 . . . 20 5 Ram 1 | . . . 1 . . . . . . . Kick . | . . . . . . . . . . . Crush 11 | . 4 . 1 . . . . . 6 . Escape Stasis 8 | . . . . . . . . . . 8 Rewire 2 | . . . . 1 1 . . . . . Trap . | . . . . . . . . . . . Miscellaneous . | . . . . . . . . . . . Route ------- -11/Scrapyard -10/Materials (discovered 5 exits: *Mat x3 / [*Min x2]) -10/Mines (discovered 3 exits: *Mat x2 / [*Sub]) -9/Materials (discovered 5 exits: *Mat x3 / *Min x2) -9/Mines (discovered 3 exits: *Mat / *Exi / [*Zio]) -9/Exiles -8/Mines -8/Materials (discovered 2 exits: Sto / Gar) -8/Garrison -8/Materials (discovered 4 exits: [*Fac x2] / *Sto / Gar) -8/Garrison (discovered 2 exits: [*Mat x2]) History --------- Turn | Location | Event 18 | -11/Scrapyard | Discovered new exit (range 16) 413 | -11/Scrapyard | Entered Materials 414 | -10/Materials | Build established: Mutant 907 | -10/Materials | Discovered new exit (range 3) 1332 | -10/Materials | Discovered new exit (range 16) 1562 | -10/Materials | Discovered new exit (range 7) 1739 | -10/Materials | Discovered new exit (range 15) 1897 | -10/Materials | Discovered new exit (range 16) 2761 | -10/Materials | Entered Mines 2822 | -10/Mines | Assisted by bots powering up and referring to "LRC-V3" 2826 | -10/Mines | Learned Materials trap positions 3056 | -10/Mines | Discovered new exit (range 13) 3181 | -10/Mines | Discovered new exit (range 8) 3293 | -10/Mines | A weapon hastily lodged in a ceiling crevice suddenly fell to the ground 3530 | -10/Mines | Discovered new exit (range 9) 3689 | -10/Mines | Entered Materials 3689 | -9/Materials | Accompanied by 3 allies 3689 | -9/Materials | Evolved 2 slots: Utility x2 3690 | -9/Materials | Loaded intel: 16 trap records 4190 | -9/Materials | Discovered new exit (range 16) 4501 | -9/Materials | Discovered new exit (range 6) 4804 | -9/Materials | Discovered new exit (range 16) 5635 | -9/Materials | Core integrity fell below 50% 5737 | -9/Materials | Repaired Com. Wheel 5814 | -9/Materials | Discovered new exit (range 8) 6152 | -9/Materials | Discovered new exit (range 12) 6540 | -9/Materials | Entered Mines 6565 | -9/Mines | Met a Derelict bent on vengeance 6693 | -9/Mines | A Derelict revealed a hidden shortcut to a safe place 6776 | -9/Mines | Deemed a non-threat by the Exiles lab entrance 6778 | -9/Mines | Discovered new exit (range 5) 6942 | -9/Mines | Met a Derelict shopkeep closing up shop 7010 | -9/Mines | Received a Rocket Launcher from a helpful Derelict 7245 | -9/Mines | Assembled infested the area 7785 | -9/Mines | Discovered new exit (range 13) 7788 | -9/Mines | Received a Mining Laser from a helpful Derelict 7898 | -9/Mines | Learned location of 1 exit from Materials 8184 | -9/Mines | Entered Exiles 8218 | -9/Exiles | Discovered new exit (range 15) 8358 | -9/Exiles | Met 8R-AWN 8397 | -9/Exiles | Met EX-HEX 8482 | -9/Exiles | Met EX-DEC 8491 | -9/Exiles | Learned location of Zion (-7) 8571 | -9/Exiles | Met EX-BIN 8911 | -9/Exiles | Aligned with FarCom system 8913 | -9/Exiles | Given EX-Vault access code 8961 | -9/Exiles | Opened EX-Vault 8974 | -9/Exiles | Found Longsword +1 9024 | -9/Exiles | Warned to stay clear of 0b10 Research branches 10019 | -9/Exiles | Attacked by the Exiles 10044 | -9/Exiles | Murdered 3 allies 10080 | -9/Exiles | Core integrity fell below 20% 10103 | -9/Exiles | Lost 3 parts (1p1u1w) 10161 | -9/Exiles | Destroyed 8R-AWN 10178 | -9/Exiles | Found AS-neutralizer No. 17b 10181 | -9/Exiles | Found 8R-AWN's Boregun 10184 | -9/Exiles | Found Exp. Targeting Computer 10192 | -9/Exiles | Found 8R-AWN's Boregun 10195 | -9/Exiles | Found 8R-AWN's Armor/EX 10317 | -9/Exiles | Left Exiles lab with Longsword +1 10317 | -9/Exiles | Entered Mines 10411 | -8/Mines | Discovered new exit (range 16) 10443 | -8/Mines | Entered Materials 10443 | -8/Materials | Evolved 2 slots: Propulsion x1, Weapon x1 10444 | -8/Materials | Identified exit to Storage 10621 | -8/Materials | Identified exit to Garrison 10621 | -8/Materials | Entered Garrison 10808 | -8/Garrison | Spotted B-75 Beast 10875 | -8/Garrison | Destroyed B-75 Beast 11048 | -8/Garrison | Triggered checkpoint 11055 | -8/Garrison | Destroyed 7 combat bots 11183 | -8/Garrison | Discovered new exit (range 10) 11234 | -8/Garrison | Triggered checkpoint 11269 | -8/Garrison | Garrison Relay disabled 11311 | -8/Garrison | Entered Materials 11362 | -8/Materials | Build established: Scavenger-Gunner 12347 | -8/Materials | Build established: Scavenger-Mutant 13135 | -8/Materials | Build established: Scavenger-Gunner 13347 | -8/Materials | Garrison activated, responded to threat 13668 | -8/Materials | Discovered new exit (range 9) 13889 | -8/Materials | Discovered exit to Storage (range 5) 13903 | -8/Materials | Core integrity fell below 50% 13982 | -8/Materials | Lost 6 parts (1p3n2w) 14132 | -8/Materials | Build established: Scavenger-Mutant 14315 | -8/Materials | Discovered new exit (range 10) 14436 | -8/Materials | Repaired Broken Exp. Targeting Computer? 14657 | -8/Materials | Repaired Lyr. Medium Armor Plating 14702 | -8/Materials | Repaired Med. Reflective Plating 14856 | -8/Materials | Build established: Mutant 15034 | -8/Materials | Identified exit to Garrison 15034 | -8/Materials | Entered Garrison 15086 | -8/Garrison | Triggered checkpoint 15120 | -8/Garrison | Garrison Relay disabled 15272 | -8/Garrison | Triggered checkpoint 15320 | -8/Garrison | Triggered checkpoint 15335 | -8/Garrison | Core integrity fell below 20% 15394 | -8/Garrison | Triggered checkpoint 15583 | -8/Garrison | Discovered new exit (range 13) 15703 | -8/Garrison | Triggered checkpoint 15820 | -8/Garrison | Discovered new exit (range 12) 15877 | -8/Garrison | Spotted B-75 Beast 15923 | -8/Garrison | Destroyed by B-75 Beast with Magnetic Acceleration Cannon Last Messages --------------- 15899_ HV Slug penetrates Wall. 15902_ HV Slug penetrates B-75 Beast. 15903_ System corrupted: Matter fused (-7). 15904_ HV Slug penetrates B-75 Beast. 15904_ B-75 Beast suffers critical hit (Destroy). 15904_ HV Slug penetrates B-75 Beast. 15907_ B-75 Beast suffers critical hit (Destroy). 15907_ HV Slug penetrates B-75 Beast. 15914_ B-75 Beast suffers critical hit (Destroy). 15914_ HV Slug penetrates B-75 Beast. 15917_ B-75 Beast suffers critical hit (Destroy). 15917_ HV Slug penetrates B-75 Beast. 15919_ B-75 Beast suffers critical hit (Destroy). 15919_ Destroyed Imp. Medium Treads. 15919_ HV Slug penetrates B-75 Beast. Map ----- +----------------------------------------------------+ | ?????????????????????????????????????????????????? | | ?????????????????????????????????????????????????? | | ?????????????????????????????????????????????????? | | ?????????????????????????????????????????????????? | | ?????????????????????????????????????????????????? | | ?????????????????????????????????????????????????? | | ??????????????????????????####???????????????????? | | ?????????????????????????? ##??????????????????? | | ?????????????????????????? #??????????????????? | | ?????????????????????????? < ???????????????????? | | ?????????????????????????? ???????????????????? | | ??????????????????????????!! #???????????????????? | | ?????????????????????????#!%!#???????????????????? | | ?????????????????????????#=![#???????????????????? | | ????????????????????###??# #???????????????????? | | ????????????????????# ??+ +???????????????????? | | ????????????????????# #??# #???????????????????? | | ????????????????????# #### #???????????????????? | | ????????????????????# # ## #???????????????????? | | ?????????????######## # #???????????????????? | | ?????????????# +???+???????????????? | | ?????????????# ^ BB +???+???????????????? | | ?????????????# ##### =BB###???????????????????? | | ?????????????# #???# ###%#????++????????????????? | | ?????????????# #???# #?#!#??????????????????????? | | ?????????????# #???# #?#@#??????????????????????? | | ?????????????# #???# #?#*[%???????????????+?????? | | ?????????????+ +??? #?###+#????????????????????? | | ?????????????# #???# #??????????????????????????? | | ???????####+## #???# ???????????????????????????? | | ???????# = ## #???? ???????????????????????????? | | ####++##[ [ ## ##??? ???????????????????????????? | | * #??? ???????????????????????????? | | == +??? ???????????????????????????? | | % [ * #??? ???????????????????????????? | | # [=! # #??? ???????????????????????????? | | ### % # ####????????????????????????????? | | + ^^ !=+?????????????????????????????? | | # = [#?????????????????????????????? | | # [ #?????????????????????????????? | | # * ????????????????????????????? | | ### ## #! #### ???????????????????????????? | | ## # ##*= ##+#######????????????????????? | | ! [ #????????????????????? | | ! =! #????????????????????? | | #????????????????????? | | ## ## ##++#####+### #????????????????????? | | ?### # # #?????????????? #????????????????????? | | ???# #######????????????????????????????????????? | | ?? ##??????????????????????????????????????????? | +----------------------------------------------------+ Best States ------------- Heat Dissipation 58 Energy Generation 19 Energy Capacity 310 Matter Stores 300 Matter Capacity 300 Sight Range 16 Terrain Scan Range 16 Terrain Scan Density 10 Armor Coverage 450 Resistance: TH 15 Evasion (%) 40 Targeting Accuracy 6 Recoil Reduction 3 Salvage Targeting 1 Offensive Hacking 10 Item Schematics ----------------- Arm. Wheel | -9/Materials | Scanalyzed Adv. Myomer Leg | -8/Materials | Scanalyzed Exp. Targeting Computer | -8/Materials | Scanalyzed Lrn. Tractor Beam | -8/Materials | Hacked Robot Schematics ------------------ M-13 Machinist | -10/Materials | Hacked Fabricated ------------ Nothing Alien Tech Used ----------------- None Achievements -------------- None Challenges ------------ None Game ------ Seed IntegrityKineticStreamer Manual? 0 Play Time 01:58:06 Cumulative 443.9 hours Start 2024.03.17 @ 00:37:29 End 2024.03.19 @ 17:11:16 Sessions 5 Manual Loads 0 Difficulty Rogue Special Mode None Game No. 203 Rogue 203 Adventurer 0 Explorer 0 Win Type - Total 11 Types 8/0/1/1/0/0/0/1/0 Lore% 86 Gallery% 92 Achievement% 71 Wizard Run 0 Options --------- Layout 2 ASCII 0 Keyboard 1 Movement Vi Keybinds 0 Fullscreen 2 Font 18/Cog Map View 50x49 Zoom Use 1% Tactical HUD 1 Map Filters NONE Filters NONE Steam 0 RUN: 17f4df81-6c86-42c2-8d3a-e4dba3e340a3